bitfinex/quotes_SOLUSD_20250908
["timestamp","ask_amount","ask_price","bid_price","bid_amount"]
[1757334565989,18.75720689,214.03,214.02,3.32252883]
[1757334566206,18.75720689,214.03,214.02,2.65252883]
[1757334567111,18.75720689,214.03,214.02,3.32252883]
[1757334568913,18.75720689,214.03,214.02,2.65252883]
[1757334569090,18.75720689,214.03,214.02,2.68252883]
[1757334569999,71.46484283,214.03,214.02,2.68252883]
[1757334571520,75.35914977,214.03,214.02,2.68252883]
[1757334572309,63.52479793,214.03,214.02,2.68252883]
[1757334573626,68.19708721,214.03,214.02,2.68252883]
[1757334574589,0.06,214.04,214.02,3.35252883]
[1757334574799,3.95430694,214.04,214.03,3.44972324]
[1757334577400,5.04689,214.04,214.03,3.44972324]
[1757334577616,5.04689,214.04,214.03,2.77972324]
[1757334578505,60.15921235,214.05,214.03,3.47972324]
[1757334578811,3.89430694,214.04,214.02,0.03]
[1757334578997,3.89430694,214.03,214.02,0.03]
[1757334579200,3.89430694,214.03,214.02,2.89806887]
[1757334579513,8.56762917,214.03,214.02,2.89806887]
[1757334580212,13.23987137,214.03,214.02,2.89806887]
[1757334581814,13.59559401,214.02,213.99,0.03]
[1757334582014,3.89430694,214.0,213.99,0.03]
[1757334582716,36.14,214.0,213.99,0.73]
[1757334582901,3.89430694,214.0,213.99,0.73]
[1757334583101,5.76473317,214.0,213.99,0.73]
[1757334583404,3.89430694,214.0,213.99,0.73]
[1757334584523,8.56720413,214.0,213.99,0.73]
[1757334584694,8.56720413,214.0,213.99,0.03]
[1757334586522,16.3536118,214.02,213.99,0.03]
[1757334586726,3.89430694,214.0,213.99,0.03]
[1757334587525,16.3536118,214.02,213.99,0.03]
[1757334587706,8.56720413,214.0,213.99,0.03]
[1757334591133,7.57720413,214.0,213.99,0.03]
[1757334592326,2.49282542,214.0,213.99,0.03]
[1757334593820,2.49282542,214.0,213.99,2.92119755]
[1757334594014,7.16572261,214.0,213.99,2.92119755]
[1757334594422,7.16572261,214.0,213.99,3.62119755]
[1757334600718,7.16572261,214.0,213.99,0.73]
[1757334600917,7.16572261,214.0,213.99,3.64553377]
[1757334601131,7.16572261,214.0,213.99,2.94553377]
[1757334602329,7.16572261,214.0,213.99,3.64553377]
[1757334604828,2.49282542,214.0,213.99,3.64553377]
[1757334605040,2.55282542,214.0,213.99,3.64553377]
[1757334605242,0.14043521,214.0,213.99,3.64553377]
[1757334605921,0.14043521,214.0,213.99,3.69518597]
[1757334606336,4.8133324,214.0,213.99,3.69518597]
[1757334607349,2.49282542,214.0,213.99,2.99518597]
[1757334608227,2.49282542,214.0,213.99,3.69518597]
[1757334608546,7.16572261,214.0,213.99,3.69518597]
[1757334611355,2.49282542,214.0,213.99,3.69518597]
[1757334613528,2.49282542,214.01,213.99,3.69518597]
[1757334613842,2.49282542,214.01,214.0,3.66518597]
[1757334614045,7.16533733,214.02,214.0,3.66518597]
[1757334614229,2.49282542,214.01,213.99,0.03]
[1757334614430,2.49282542,214.01,214.0,2.93244]
[1757334614742,2.49282542,214.01,214.0,3.63244]
[1757334615357,0.06,214.03,214.0,3.63244]
[1757334615530,0.06,214.03,214.01,3.63244]
[1757334615732,0.06,214.03,214.02,2.93244]
[1757334615955,0.06,214.03,214.02,3.63244]
[1757334617444,0.00423268,214.03,214.02,3.63244]
[1757334617668,2.4970581,214.03,214.02,3.63244]
[1757334619960,2.4970581,214.03,214.02,2.93244]
[1757334620334,7.1693003,214.03,214.02,2.93244]
[1757334620864,7.1693003,214.03,214.02,3.63244]
[1757334622448,2.49282542,214.03,214.02,3.63244]
[1757334623656,7.16506762,214.03,214.02,3.63244]
[1757334624348,7.16506762,214.03,214.02,3.66244]
[1757334624657,2.55282542,214.03,214.02,3.66244]
[1757334625156,0.06,214.03,214.02,3.66244]
[1757334630749,0.06,214.03,214.02,2.96244]
[1757334630750,2.55282542,214.03,214.02,2.96244]
[1757334632452,7.22506762,214.03,214.02,2.96244]
[1757334635458,7.22506762,214.03,214.02,3.62244]
[1757334636482,7.22506762,214.03,214.02,2.96244]
[1757334636965,20.82066163,214.03,214.02,2.96244]
[1757334637358,56.90066163,214.03,214.02,2.96244]
[1757334637743,59.86310163,214.03,214.02,2.96244]
[1757334644259,13.59559401,214.02,213.99,0.03]
[1757334644464,2.49282542,214.0,213.99,0.03]
[1757334644658,38.55282542,214.0,213.99,0.03]
[1757334645182,40.42333911,214.0,213.99,0.03]
[1757334645559,45.0962363,214.0,213.99,0.03]
[1757334652392,46.49905616,214.0,213.99,0.03]
[1757334653674,60.09465017,214.0,213.99,0.03]
[1757334654696,24.03465017,214.0,213.99,0.03]
[1757334654991,60.09465017,214.0,213.99,0.03]
[1757334656279,60.09465017,214.0,213.99,2.9110702]
[1757334657192,60.09465017,214.0,213.99,3.5710702]
[1757334657882,60.09465017,214.0,213.99,2.9110702]
[1757334660493,60.09465017,214.0,213.99,3.5710702]
[1757334660894,24.03465017,214.0,213.99,3.5710702]
[1757334661296,60.09465017,214.0,213.99,3.5710702]
[1757334663189,60.09465017,214.0,213.99,3.56879434]
[1757334664405,60.09465017,214.0,213.99,2.90879434]
[1757334665391,46.49905616,214.0,213.99,2.90879434]
[1757334668496,46.49905616,214.0,213.99,3.61879434]
[1757334672918,46.47905616,214.0,213.99,3.61879434]
[1757334673700,10.43905616,214.0,213.99,3.61879434]
[1757334674114,46.47905616,214.0,213.99,3.61879434]
[1757334674328,1.87051369,214.0,213.99,3.61879434]
[1757334674494,4.67272394,214.01,213.99,3.61879434]
[1757334674695,4.73249177,214.02,214.0,3.58879434]
[1757334674890,4.73249177,214.02,214.01,3.58879434]
[1757334675388,8.62813705,214.02,214.01,3.58879434]
[1757334675693,8.62813705,214.02,214.01,0.71]
[1757334676514,0.06,214.03,214.01,5.38263215]
[1757334676715,0.06,214.05,214.01,5.38263215]
[1757334677017,0.06,214.05,214.02,0.71]
[1757334677221,0.06,214.05,214.03,2.97258996]
[1757334677222,0.00331556,214.05,214.03,2.97258996]
[1757334677415,0.00331556,214.05,214.04,3.68258996]
[1757334677416,4.67512121,214.05,214.04,3.68258996]
[1757334677929,8.57076649,214.05,214.04,2.97258996]
[1757334678099,44.61076649,214.05,214.04,2.97258996]
[1757334679019,4.67512121,214.05,214.04,2.97258996]
[1757334679322,44.61076649,214.05,214.04,2.97258996]
[1757334679714,8.57076649,214.05,214.04,3.68258996]
[1757334680623,4.67512121,214.05,214.04,3.68258996]
[1757334680835,8.57076649,214.05,214.04,3.68258996]
[1757334687118,8.57076649,214.05,214.04,2.97258996]
[1757334687830,8.57076649,214.05,214.04,3.68258996]
[1757334689729,8.57076649,214.05,214.04,2.97258996]
[1757334690015,8.57076649,214.05,214.04,3.68258996]
[1757334690640,0.68120663,214.05,214.04,3.68258996]
[1757334692023,5.35301228,214.05,214.04,3.68258996]
[1757334693329,5.35301228,214.05,214.04,2.97258996]
[1757334693527,5.35301228,214.05,214.04,3.68258996]
[1757334696241,5.41301228,214.05,214.04,3.68258996]
[1757334700721,5.41301228,214.05,214.04,2.97258996]
[1757334701325,41.41301228,214.05,214.04,2.97258996]
[1757334701544,44.38560224,214.05,214.04,2.97258996]
[1757334701917,41.41301228,214.05,214.04,3.67258996]
[1757334702425,41.41301228,214.05,214.04,2.97258996]
[1757334703041,41.41301228,214.05,214.04,3.67258996]
[1757334703430,41.41301228,214.05,214.04,2.97258996]
[1757334704037,41.41301228,214.05,214.04,3.67258996]
[1757334704234,8.62745093,214.05,214.04,3.67258996]
[1757334705242,4.73180565,214.05,214.04,3.67258996]
[1757334705449,0.06,214.05,214.04,3.67258996]
[1757334705622,0.00749419,214.06,214.04,3.67258996]
[1757334705824,0.00749419,214.06,214.03,0.03]
[1757334705825,0.00749419,214.06,214.05,3.67258996]
[1757334706251,0.1,214.07,214.05,3.67258996]
[1757334706426,0.1,214.07,214.06,3.67258996]
[1757334715935,0.1,214.07,214.06,3.70258996]
[1757334716343,67.92966482,214.09,214.06,3.70258996]
[1757334716552,67.92966482,214.09,214.07,3.67258996]
[1757334716862,67.92966482,214.09,214.08,3.67258996]
[1757334717848,2.44004453,214.23,214.12,26.0]
[1757334718055,2.44004453,214.23,214.13,39.65258996]
[1757334718266,4.66788031,214.23,214.14,3.67258996]
[1757334718471,4.66788031,214.23,214.15,3.67258996]
[1757334718647,4.76776227,214.24,214.17,26.0]
[1757334718847,4.76776227,214.24,214.18,3.67258996]
[1757334719059,4.76776227,214.24,214.19,3.67258996]
[1757334719356,4.76776227,214.24,214.2,3.67258996]
[1757334719663,0.1,214.24,214.21,3.67258996]
[1757334719842,0.1,214.24,214.22,3.67258996]
[1757334720043,0.1,214.24,214.23,2.97258996]
[1757334720350,0.1,214.24,214.23,3.67258996]
[1757334720552,14.49671318,214.29,214.23,3.67258996]
[1757334720553,0.1,214.29,214.23,3.67258996]
[1757334720749,0.1,214.29,214.25,4.66744457]
[1757334720963,67.92966482,214.4,214.3,26.0]
[1757334720964,14.00592917,214.38,214.3,26.0]
[1757334721274,14.00592917,214.38,214.31,3.67258996]
[1757334721446,14.00592917,214.38,214.35,26.0]
[1757334721645,0.7,214.49,214.39,26.0]
[1757334721841,16.31777704,214.49,214.4,3.67258996]
[1757334722067,16.31777704,214.49,214.41,2.97258996]
[1757334722068,2.48998689,214.46,214.41,2.97258996]
[1757334722365,0.7,214.45,214.42,2.97258996]
[1757334722573,0.7,214.45,214.43,2.97258996]
[1757334722746,0.7,214.45,214.44,2.97258996]
[1757334722946,5.36309162,214.45,214.44,2.97258996]
[1757334724365,11.65555503,214.49,214.44,2.97258996]
[1757334724366,3.18998689,214.48,214.44,2.97258996]
[1757334724675,0.7,214.47,214.45,2.97258996]
[1757334724870,0.7,214.46,214.41,0.7]
[1757334725168,0.7,214.46,214.42,2.97195973]
[1757334725359,0.7,214.46,214.43,2.97195973]
[1757334725557,4.66309162,214.45,214.44,2.97195973]
[1757334727571,4.66265678,214.47,214.44,2.97195973]
[1757334727877,0.7,214.46,214.45,2.97195973]
[1757334728657,4.66265678,214.47,214.45,2.97195973]
[1757334728862,4.66265678,214.47,214.46,2.97195973]
[1757334729160,2.48998689,214.52,214.46,2.97195973]
[1757334729354,2.48998689,214.5,214.47,2.97195973]
[1757334729555,5.36222201,214.49,214.48,2.95390819]
[1757334729978,7.8522089,214.49,214.48,2.95390819]
[1757334731160,5.36222201,214.49,214.48,2.95390819]
[1757334731368,7.8522089,214.49,214.48,2.95390819]
[1757334731571,19.50776393,214.49,214.41,0.68]
[1757334731765,19.50776393,214.49,214.42,2.95125746]
[1757334732078,0.7,214.48,214.43,2.95125746]
[1757334732382,2.48998689,214.46,214.44,2.95125746]
[1757334732557,2.48998689,214.46,214.45,2.95125746]
[1757334733678,7.15286108,214.46,214.45,2.95125746]
[1757334734181,4.66287419,214.46,214.45,2.95125746]
[1757334734358,7.15286108,214.46,214.45,2.95125746]
[1757334738080,7.15286108,214.46,214.45,3.63125746]
[1757334738973,7.15286108,214.46,214.45,2.95125746]
[1757334741869,7.15286108,214.46,214.45,3.63125746]
[1757334742702,4.66287419,214.46,214.45,3.63125746]
[1757334742999,7.15286108,214.46,214.45,3.63125746]
[1757334743291,7.15286108,214.46,214.45,2.95125746]
[1757334744394,67.92966482,214.47,214.45,2.95125746]
[1757334744592,2.48998689,214.46,214.43,0.68]
[1757334744774,2.48998689,214.44,214.39,35.94]
[1757334744973,2.48998689,214.44,214.4,2.93137065]
[1757334745291,2.48998689,214.44,214.41,3.61137065]
[1757334745495,2.48998689,214.44,214.42,3.61137065]
[1757334745670,2.48998689,214.44,214.43,3.61137065]
[1757334746201,7.15329597,214.44,214.43,2.93137065]
[1757334746875,4.66330908,214.44,214.43,2.93137065]
[1757334747181,7.15329597,214.44,214.43,2.93137065]
[1757334748570,7.15329597,214.44,214.43,3.61137065]
[1757334748970,7.15329597,214.44,214.43,2.93137065]
[1757334750772,2.48998689,214.44,214.43,2.93137065]
[1757334751092,0.12995478,214.44,214.43,3.61137065]
[1757334751685,2.48998689,214.44,214.43,3.61137065]
[1757334751868,2.48998689,214.44,214.43,2.93137065]
[1757334752278,2.48998689,214.44,214.43,3.61137065]
[1757334753097,7.15329597,214.44,214.43,3.61137065]
[1757334753600,4.66330908,214.44,214.43,3.61137065]
[1757334753777,7.15329597,214.44,214.43,3.61137065]
[1757334753977,7.15329597,214.44,214.43,3.01927965]
[1757334754479,4.66330908,214.44,214.43,3.01927965]
[1757334757174,4.66330908,214.44,214.43,2.33927965]
[1757334757369,7.15329597,214.44,214.43,2.33927965]
[1757334758184,2.48998689,214.44,214.43,2.33927965]
[1757334758384,67.92966482,214.45,214.43,3.04927965]
[1757334758695,67.92966482,214.45,214.44,0.71]
[1757334758888,0.06,214.46,214.44,0.71]
[1757334759482,2.48998689,214.5,214.44,0.71]
[1757334760100,2.48998689,214.49,214.44,0.71]
[1757334760271,59.22470494,214.55,214.44,0.71]
[1757334760472,2.48998689,214.5,214.44,0.71]
[1757334760799,2.48998689,214.49,214.44,0.71]
[1757334760999,2.48998689,214.48,214.44,0.71]
[1757334761377,2.48998689,214.49,214.44,0.71]
[1757334761681,2.48998689,214.48,214.44,0.71]
[1757334762274,0.61,214.51,214.45,0.71]
[1757334762479,2.48998689,214.49,214.45,0.71]
[1757334762707,2.48998689,214.5,214.45,0.71]
[1757334762890,2.48998689,214.49,214.45,0.71]
[1757334763707,4.66243938,214.48,214.46,0.71]
[1757334766304,4.66200466,214.5,214.48,2.79840783]
[1757334766605,4.66200466,214.5,214.49,2.79840783]
[1757334771207,2.48998689,214.51,214.49,2.79840783]
[1757334771413,2.48998689,214.51,214.5,2.79840783]
[1757334771786,3.09998689,214.51,214.5,2.79840783]
[1757334772210,2.48998689,214.51,214.5,2.79840783]
[1757334773006,18.80624253,214.51,214.5,2.79840783]
[1757334773405,18.86624253,214.51,214.5,2.79840783]
[1757334773912,13.59559401,214.5,214.49,0.03]
[1757334774108,16.0855809,214.5,214.49,0.03]
[1757334774318,16.6955809,214.5,214.49,0.03]
[1757334774816,2.48998689,214.5,214.49,0.03]
[1757334775693,7.15199155,214.5,214.49,0.03]
[1757334776098,4.66200466,214.5,214.49,0.74]
[1757334776612,8.53781399,214.5,214.49,0.74]
[1757334776986,4.66200466,214.5,214.49,0.74]
[1757334778214,4.66200466,214.5,214.49,0.03]
[1757334779213,9.14781399,214.5,214.49,0.03]
[1757334779794,8.53781399,214.5,214.49,0.03]
[1757334780105,4.66200466,214.5,214.49,0.03]
[1757334780296,15.59027765,214.51,214.49,0.03]
[1757334780809,4.48580933,214.5,214.49,0.03]
[1757334782307,26.61921733,214.5,214.49,0.03]
[1757334782513,39.59559401,214.47,214.46,0.03]
[1757334782716,79.39140334,214.47,214.46,0.03]
[1757334782895,80.00140334,214.47,214.46,0.03]
[1757334783702,76.12559401,214.47,214.46,0.03]
[1757334783924,80.00140334,214.47,214.46,0.03]
[1757334784927,3.87580933,214.47,214.46,0.03]
[1757334785305,3.87580933,214.47,214.46,0.74]
[1757334785618,13.59559401,214.5,214.46,0.74]
[1757334785816,71.80547415,214.5,214.47,2.84770824]
[1757334786007,71.80547415,214.5,214.48,3.51770824]
[1757334786209,71.80547415,214.5,214.49,3.51770824]
[1757334786625,71.80547415,214.5,214.49,2.84770824]
[1757334787328,67.92966482,214.5,214.49,2.84770824]
[1757334789021,67.92966482,214.5,214.49,3.51770824]
[1757334789419,0.06,214.51,214.49,3.51770824]
[1757334789728,0.06,214.51,214.5,2.84770824]
[1757334790029,0.06,214.51,214.5,3.51770824]
[1757334791239,0.06,214.51,214.5,1.51770824]
[1757334793425,3.78942986,214.51,214.5,1.51770824]
[1757334794929,0.06,214.51,214.5,1.51770824]
[1757334795536,67.98966482,214.51,214.5,1.51770824]
[1757334796327,67.98966482,214.51,214.5,0.84770824]
[1757334797444,67.98966482,214.51,214.5,1.51770824]
[1757334797633,67.92966482,214.53,214.5,1.51770824]
[1757334797826,67.92966482,214.53,214.51,0.67]
[1757334798138,67.92966482,214.53,214.52,0.67]
[1757334798823,67.92966482,214.56,214.52,0.67]
[1757334799044,17.72045157,214.58,214.52,0.67]
[1757334799353,3.72824057,214.58,214.52,0.67]
[1757334800025,3.72803951,214.59,214.52,0.67]
[1757334800917,3.72789559,214.6,214.52,0.67]
[1757334802739,7.60332773,214.62,214.54,26.0]
[1757334802943,7.60332773,214.62,214.55,0.67]
[1757334803146,7.60332773,214.62,214.56,2.8599524]
[1757334803337,7.60332773,214.62,214.57,3.5299524]
[1757334803641,7.60332773,214.62,214.58,3.5299524]
[1757334803850,7.60332773,214.62,214.59,2.8599524]
[1757334804045,75.53299255,214.62,214.6,2.8599524]
[1757334804251,4.48580933,214.61,214.55,0.67]
[1757334804438,4.48580933,214.61,214.56,2.85627733]
[1757334804750,4.48580933,214.61,214.57,2.85627733]
[1757334804952,4.48580933,214.61,214.58,2.85627733]
[1757334805136,4.48580933,214.61,214.59,2.85627733]
[1757334805336,71.65722409,214.62,214.6,3.52627733]
[1757334805547,71.65722409,214.62,214.61,2.85627733]
[1757334805857,67.92966482,214.62,214.61,2.85627733]
[1757334806926,67.92966482,214.62,214.61,3.52627733]
[1757334808635,71.65718322,214.62,214.61,2.85627733]
[1757334809128,75.53299255,214.62,214.61,2.85627733]
[1757334809334,71.65718322,214.62,214.61,2.85627733]
[1757334810648,75.53299255,214.62,214.61,2.85627733]
[1757334810842,8.21332773,214.62,214.61,2.85627733]
[1757334811443,44.11332773,214.62,214.61,2.85627733]
[1757334811642,44.11332773,214.62,214.54,0.67]
[1757334811643,3.87580933,214.57,214.54,0.67]
[1757334812858,3.72856077,214.56,214.54,0.67]
[1757334814740,7.6043701,214.56,214.5,0.03]
[1757334814944,3.87580933,214.52,214.5,0.03]
[1757334815139,3.87580933,214.51,214.5,0.03]
[1757334815862,81.46580218,214.55,214.5,0.7]
[1757334816033,3.87580933,214.53,214.5,0.7]
[1757334816234,3.87580933,214.52,214.5,0.03]
[1757334816660,3.87580933,214.51,214.5,0.03]
[1757334816863,7.60523919,214.51,214.5,0.03]
[1757334817657,3.72942986,214.51,214.5,0.03]
[1757334817862,7.60523919,214.51,214.5,0.03]
[1757334821869,3.72942986,214.51,214.5,0.03]
[1757334822054,7.60523919,214.51,214.5,0.03]
[1757334822646,3.72942986,214.51,214.5,0.03]
[1757334823577,3.72942986,214.51,214.5,2.87015962]
[1757334827245,7.60523919,214.51,214.5,2.87015962]
[1757334827871,20.0,214.73,214.53,26.0]
[1757334828168,4.53580933,214.63,214.54,2.84015962]
[1757334828371,4.53580933,214.63,214.55,2.84015962]
[1757334828670,4.53580933,214.63,214.56,2.97015962]
[1757334828853,4.53580933,214.63,214.57,2.84015962]
[1757334829056,4.53580933,214.63,214.58,2.84015962]
[1757334829258,3.7275184,214.62,214.59,2.84015962]
[1757334829470,4.3875184,214.62,214.6,2.84015962]
[1757334829661,3.7275184,214.62,214.61,2.84015962]
[1757334829863,7.60332773,214.62,214.61,2.84015962]
[1757334830059,7.60332773,214.62,214.61,2.12015962]
[1757334830267,21.85892174,214.62,214.61,2.12015962]
[1757334830991,21.85892174,214.62,214.5,0.03]
[1757334830992,13.59559401,214.61,214.5,0.03]
[1757334831181,3.87580933,214.53,214.5,0.03]
[1757334831475,7.60506534,214.52,214.5,0.03]
[1757334831658,4.38925601,214.52,214.5,0.03]
[1757334831854,3.72868491,214.56,214.51,0.67]
[1757334832072,3.72868491,214.56,214.52,0.67]
[1757334832654,3.87580933,214.53,214.5,0.03]
[1757334832877,3.87580933,214.51,214.5,0.03]
[1757334833263,8.26523919,214.51,214.5,0.03]
[1757334833871,78.88,214.52,214.5,0.03]
[1757334834068,82.60933547,214.52,214.5,0.03]
[1757334834576,82.75580933,214.52,214.5,0.03]
[1757334834882,78.88,214.52,214.5,0.7]
[1757334835263,78.88,214.52,214.51,0.67]
[1757334836075,78.88,214.52,214.5,0.03]
[1757334836076,82.60930305,214.52,214.5,0.03]
[1757334836957,3.72930305,214.52,214.5,0.03]
[1757334837378,6.20919537,214.52,214.5,0.03]
[1757334837772,3.72930305,214.52,214.5,0.03]
[1757334837972,6.20919537,214.52,214.5,0.03]
[1757334838180,6.86919537,214.52,214.5,0.03]
[1757334838570,6.20919537,214.52,214.5,0.03]
[1757334840584,2.47989232,214.52,214.5,0.03]
[1757334841280,0.20299365,214.52,214.5,0.03]
[1757334841764,3.13989232,214.51,214.5,0.03]
[1757334842682,6.86932218,214.51,214.5,0.03]
[1757334842883,6.86932218,214.51,214.5,2.89096626]
[1757334843058,78.88,214.53,214.5,2.89096626]
[1757334843263,2.47989232,214.51,214.5,0.03]
[1757334843466,2.47989232,214.51,214.5,2.89064864]
[1757334844392,6.20932218,214.51,214.5,2.89064864]
[1757334845864,6.86932218,214.51,214.5,2.89064864]
[1757334846784,4.38942986,214.51,214.5,2.89064864]
[1757334846986,6.86932218,214.51,214.5,2.89064864]
[1757334848588,6.20932218,214.51,214.5,2.89064864]
[1757334848977,6.86932218,214.51,214.5,2.89064864]
[1757334851873,43.30932218,214.51,214.5,2.89064864]
[1757334855178,53.22889146,214.51,214.5,2.89064864]
[1757334855597,43.30932218,214.51,214.5,2.89064864]
[1757334857216,56.90491619,214.51,214.5,2.89064864]
[1757334858782,59.79556483,214.51,214.5,2.89064864]
[1757334859691,69.71513411,214.51,214.5,2.89064864]
[1757334859881,95.71513411,214.51,214.5,2.89064864]
[1757334860386,85.79556483,214.51,214.5,2.89064864]
[1757334860591,13.59559401,214.48,214.47,0.03]
[1757334860803,52.45548633,214.48,214.47,0.03]
[1757334861389,54.32207211,214.48,214.47,0.03]
[1757334861590,52.45548633,214.48,214.47,0.03]
[1757334861803,56.18543784,214.48,214.47,0.03]
[1757334862007,19.80543784,214.48,214.47,0.03]
[1757334862198,56.20543784,214.48,214.47,0.03]
[1757334862598,55.27294996,214.48,214.47,0.03]
[1757334863799,2.79746363,214.48,214.47,0.03]
[1757334864715,135.85731434,214.5,214.47,0.03]
[1757334867198,142.85032133,214.5,214.47,0.03]
[1757334867921,142.19032133,214.5,214.47,0.03]
[1757334868715,144.67021365,214.5,214.47,0.03]
[1757334869611,12.27021365,214.5,214.47,0.03]
[1757334870410,9.79032133,214.5,214.47,0.03]
[1757334870802,12.27021365,214.5,214.47,0.03]
[1757334871201,9.79032133,214.5,214.47,0.03]
[1757334872612,12.27021365,214.5,214.48,2.80539985]
[1757334872810,12.27021365,214.5,214.49,2.80539985]
[1757334873709,48.65021365,214.5,214.49,2.80539985]
[1757334875824,2.79731434,214.5,214.49,2.80539985]
[1757334876325,5.27720666,214.5,214.49,2.80539985]
[1757334876718,41.71720666,214.5,214.49,2.80539985]
[1757334877313,2.79731434,214.5,214.49,2.80539985]
[1757334877608,41.71720666,214.5,214.49,2.80539985]
[1757334878018,41.73720666,214.5,214.49,2.80539985]
[1757334878416,2.79731434,214.5,214.49,2.80539985]
[1757334879527,0.06,214.51,214.49,2.80539985]
[1757334879725,0.06,214.51,214.5,2.80539985]
[1757334880931,2.85707239,214.51,214.5,2.80539985]
[1757334882310,5.33696471,214.51,214.5,2.80539985]
[1757334891051,2.85707239,214.51,214.5,2.80539985]
[1757334891247,5.33696471,214.51,214.5,2.80539985]
[1757334891534,5.33696471,214.51,214.5,2.83539985]
[1757334893251,2.85707239,214.51,214.5,2.83539985]
[1757334893456,5.33696471,214.51,214.5,2.83539985]
[1757334894223,2.85707239,214.51,214.5,2.83539985]
[1757334894431,5.33696471,214.51,214.5,2.83539985]
[1757334894730,2.47989232,214.51,214.5,2.83539985]
[1757334896327,3.87593487,214.51,214.5,2.83539985]
[1757334896739,36.34,214.52,214.5,2.83539985]
[1757334897049,6.67300726,214.51,214.5,0.03]
[1757334897243,6.67300726,214.51,214.5,2.85311344]
[1757334898252,2.79707239,214.51,214.5,2.85311344]
[1757334900557,6.67300726,214.51,214.5,2.85311344]
[1757334901458,2.79707239,214.51,214.5,2.85311344]
[1757334903259,2.330785,214.52,214.5,2.85311344]
[1757334903557,2.330785,214.52,214.51,2.82311344]
[1757334904560,4.54593487,214.53,214.51,2.82311344]
[1757334904766,5.88662257,214.54,214.52,2.82311344]
[1757334904962,5.88662257,214.54,214.53,2.82311344]
[1757334905352,6.55662257,214.54,214.53,2.82311344]
[1757334905865,8.88719029,214.54,214.53,2.82311344]
[1757334906076,12.76312516,214.54,214.53,2.82311344]
[1757334908244,8.88719029,214.54,214.53,2.82311344]
[1757334908445,12.76312516,214.54,214.53,2.82311344]
[1757334908634,12.76312516,214.54,214.51,0.71]
[1757334909145,12.09312516,214.54,214.51,0.71]
[1757334909751,12.80312516,214.54,214.51,0.71]
[1757334910158,6.26650259,214.54,214.52,0.71]
[1757334910349,6.26650259,214.54,214.53,0.71]
[1757334910350,2.39056772,214.54,214.53,0.71]
[1757334910651,0.06,214.54,214.53,0.71]
[1757334912657,0.06,214.54,214.53,26.71]
[1757334914566,5.369398,214.62,214.53,26.71]
[1757334914781,4.659398,214.62,214.53,26.71]
[1757334915070,8.53533287,214.62,214.53,26.71]
[1757334915362,3.87593487,214.6,214.53,26.71]
[1757334917248,20.18610775,214.59,214.54,26.0]
[1757334917464,4.66004939,214.59,214.54,26.71]
[1757334917681,8.53598426,214.59,214.54,26.71]
[1757334918578,8.53598426,214.59,214.5,36.31]
[1757334918579,3.87593487,214.55,214.5,36.31]
[1757334918888,3.87593487,214.53,214.5,37.02]
[1757334919079,8.53772219,214.51,214.5,0.03]
[1757334919589,4.66178732,214.51,214.5,0.03]
[1757334921584,8.53772219,214.51,214.5,0.03]
[1757334925792,9.24772219,214.51,214.5,0.03]
[1757334929382,5.37178732,214.51,214.5,0.03]
[1757334929685,9.24772219,214.51,214.5,0.03]
[1757334931805,26.71925107,214.51,214.5,0.03]
[1757334931980,38.37371939,214.51,214.47,0.03]
[1757334932182,3.87593487,214.48,214.38,0.74]
[1757334932414,3.87593487,214.43,214.38,0.03]
[1757334932729,3.87593487,214.43,214.4,0.71]
[1757334933105,3.87593487,214.43,214.42,0.74]
[1757334933106,4.66352655,214.43,214.42,0.74]
[1757334933838,4.66243938,214.48,214.42,0.74]
[1757334935128,4.66222201,214.49,214.42,0.74]
[1757334935931,4.66222201,214.49,214.43,36.32]
[1757334936134,4.66222201,214.49,214.44,0.71]
[1757334936425,4.66222201,214.49,214.45,0.71]
[1757334936618,4.66222201,214.49,214.43,36.32]
[1757334936619,4.66222201,214.49,214.46,0.71]
[1757334937421,11.65515302,214.5,214.43,36.32]
[1757334937602,11.65515302,214.5,214.44,0.71]
[1757334937801,15.53108789,214.5,214.44,0.71]
[1757334937999,16.22108789,214.5,214.44,0.71]
[1757334938203,3.87593487,214.49,214.42,0.03]
[1757334938424,3.87593487,214.48,214.42,0.03]
[1757334938609,4.56593487,214.48,214.42,0.03]
[1757334939411,4.66265678,214.47,214.42,0.03]